Cogmind - Beta 15 @@@ ROGUE MODE // 2025.09.11 @ 13:54:21 Player: shapeshifter Result: Destroyed by TI-NQC(R) with Subdweller Shrapnel Launcher Performance ------------- Evolutions (0) 0 Regions Visited (3) 600 Robots Destroyed (13) 65 Value Destroyed (458) 458 Prototype IDs (11) 220 Alien Tech Used (0) 0 Bonus (0) 0 TOTAL SCORE: 1343 Bonus ------- None Cogmind --------- Core Integrity 0/250 Matter 265/300 Energy 100/100 System Corruption 0% Temperature Cool (0) Movement Rolling (160) Ox5 Location -10/Subcaves Parts ------- > --- POWER (1) -------- (None) > --- PROPULSION (2) --- Subdweller Monowheel Subdweller Monowheel > --- UTILITY (2) ------ Humpback > --- WEAPON (2) ------- Subdweller Machine Gun Subdweller Machine Gun > --- INVENTORY (35) --- Light Nuclear Core Meta Core Large Storage Unit Large Storage Unit Humpback Subdweller Optics Subdweller Optics Light Armor Plating Light Armor Plating Scrap Shield Subdweller Laser Subdweller Laser Subdweller Machine Gun Barrage Gun Shock Bomb Launcher Peak State ------------ > --- POWER ------------ Light Nuclear Core > --- PROPULSION ------- Light Treads Light Treads > --- UTILITY ---------- Large Storage Unit Light Armor Plating > --- WEAPON ----------- Pulse Rifle Subdweller Machine Gun > --- INVENTORY -------- Subdweller Power Source Light Nuclear Core Meta Core Compact Wheel Subdweller Monowheel Subdweller Monowheel Large Storage Unit Subdweller Optics Light Armor Plating Scrap Shield Subdweller Laser Subdweller Machine Gun Subdweller Machine Gun Shock Bomb Launcher [Rating: 16] Favorites ----------- Power Light Nuclear Core Engine Ion Engine Power Core Light Nuclear Core Propulsion Light Treads Treads Light Treads Wheel Subdweller Monowheel Utility Large Storage Unit Device Seismic Detector Storage Large Storage Unit Protection Light Armor Plating Weapon Subdweller Machine Gun Energy Gun Pulse Rifle Ballistic Gun Subdweller Machine Gun Ballistic Cannon Light Cannon Build | -11 -10 -10 -10 ------- Run | Yrd Mat Min Sub Slots Evolved . | . . . . Power . | . . . . Propulsion . | . . . . Utility . | . . . . Weapon . | . . . . Parts Attached 21 | 7 1 1 12 Power 3 | 1 . . 2 Engine 2 | 1 . . 1 Core 1 | . . . 1 Reactor . | . . . . Propulsion 5 | 2 . . 3 Treads 2 | 2 . . . Leg . | . . . . Wheel 3 | . . . 3 Hover . | . . . . Flight . | . . . . Utility 6 | 2 1 1 2 Device 1 | 1 . . . Storage 3 | 1 1 . 1 Processor . | . . . . Hackware . | . . . . Protection 2 | . . 1 1 Artifact . | . . . . Weapon 7 | 2 . . 5 Energy Gun 1 | . . . 1 Energy Cannon . | . . . . Ballistic Gun 5 | 2 . . 3 Ballistic Cannon 1 | . . . 1 Launcher . | . . . . Special Weapon . | . . . . Impact Weapon . | . . . . Slashing Weapon . | . . . . Piercing Weapon . | . . . . Special Melee Weapon . | . . . . Unidentified Prototypes . | . . . . Parts Lost 8 | . . . 8 Power 3 | . . . 3 Propulsion 3 | . . . 3 Utility 1 | . . . 1 Weapon 1 | . . . 1 Highest Loss Streak 4 | . . . 4 To Critical Strikes . | . . . . Average Backups 12 | 2 6 13 13 Power 1 | . 1 1 1 Propulsion 2 | 1 2 2 2 Utility 5 | . 2 6 5 Weapon 3 | . 1 3 3 Tool/Special . | . . . . Unused Backups 18 | . . 1 17 Power 2 | . . 1 1 Propulsion 1 | . . . 1 Utility 9 | . . . 9 Weapon 5 | . . . 5 Tool/Special 1 | . . . 1 Average Slot Usage (%) 97 | . 100 100 96 Engine 5 | . 14 14 3 Core 7 | . . . 9 Treads 23 | . 28 28 22 Wheel 3 | . . . 4 Device 2 | . 14 14 . Storage 14 | . 14 14 14 Protection 9 | . . . 12 Energy Gun 9 | . . . 11 Ballistic Gun 18 | . 28 28 16 Peak Build Rating 16 | 7 8 9 16 Average Rating 12 | 5 7 8 13 On Entrance 6 | . 7 8 9 Naked Turns . | . . . . Heaviest Build 213 | 14 29 31 213 Greatest Support 40 | 40 40 40 40 Greatest Overweight (x) 10 | . . . 10 Average Overweight (x) . | . . . . Largest Inventory Capacity 35 | 8 15 15 35 Average Capacity 16 | 7 12 15 17 Most Carried 17 | 5 11 15 17 Average Carried 12 | 2 6 14 14 Final Capacity 35 | 8 15 15 35 Final Carried 17 | 3 11 15 17 Class Distribution -------------------- 90% | Mutant 9% | Hauler-Mutant Dominant Class ---------------- Mutant | -10/Materials Mutant | -10/Mines Mutant | -10/Subcaves Resources | -11 -10 -10 -10 ----------- Run | Yrd Mat Min Sub Matter Collected 630 | 298 . . 332 Remotely . | . . . . Salvage Created 397 | 73 . . 324 Parts 25 | 6 . . 19 Haulers Intercepted . | . . . . Recyclers Shooed . | . . . . Parts Field Recycled . | . . . . Retrieved Matter . | . . . . Parts Self-Destructed 8 | . . . 8 Prevented . | . . . . Kills | -11 -10 -10 -10 ------- Run | Yrd Mat Min Sub Combat Hostiles Destroyed 11 | . . . 11 Guns 11 | . . . 11 Classes Destroyed 4 | 2 . . 2 Tunneler 1 | 1 . . . Recycler 1 | 1 . . . Sentry 1 | . . . 1 Subdweller 10 | . . . 10 Best Kill Streak 3 | 1 . . 3 Combat Bots Only 3 | . . . 3 Max Kills in Single Turn 1 | 1 . . 1 Gunslinging . | . . . . Exploded . | . . . . Melee . | . . . . Uniques/NPCs Destroyed . | . . . . Combat | -11 -10 -10 -10 -------- Run | Yrd Mat Min Sub Hostile Shots Fired 95 | . 1 . 94 Missed 24 | . 1 . 23 Hits 71 | . . . 71 Projectile 71 | . . . 71 AOE 4 | . . . 4 Critical Strikes 2 | . . . 2 Damage Taken 1551 | . . . 1551 Core 278 | . . . 278 Absorbed by Shields . | . . . . Core Remaining (%) 100 | 100 . . . Volleys Fired 94 | 12 . . 82 Largest 2 | 2 . . 2 Hottest 93 | 40 . . 93 Shots Fired 154 | 24 . . 130 Gun 154 | 24 . . 130 Cannon . | . . . . Launcher . | . . . . Special . | . . . . Kinetic 120 | 24 . . 96 Thermal 34 | . . . 34 Explosive . | . . . . Electromagnetic . | . . . . Robot Hit Streak 24 | 5 . . 24 Robot Miss Streak 4 | 4 . . 2 Penetration Max . | . . . . Secondary Targets 2 | . . . 2 Max Gunslinging Chain 1 | . . . 1 Shots Hit Robots 99 | 12 . . 87 Core Hits 25 | 4 . . 21 Critical Kills 1 | . . . 1 Critical Parts Destroyed 1 | . . . 1 Critical Strikes 2 | . . . 2 Destroy 2 | . . . 2 Melee Attacks . | . . . . Impact . | . . . . Slashing . | . . . . Piercing . | . . . . Sneak Attacks . | . . . . Combat Hostiles . | . . . . Follow-up Attacks . | . . . . Damage Inflicted 1753 | 125 . . 1628 Guns 1753 | 125 . . 1628 Cannons . | . . . . Explosions . | . . . . Melee . | . . . . Ramming . | . . . . Kinetic 1358 | 125 . . 1233 Thermal 395 | . . . 395 Explosive . | . . . . Electromagnetic . | . . . . Impact . | . . . . Slashing . | . . . . Piercing . | . . . . Highest Corruption . | . . . . Average Corruption . | . . . . Corruption Purged . | . . . . Corruption Blocked . | . . . . Overload Shots . | . . . . Overflow Damage . | . . . . Projectiles . | . . . . Explosions . | . . . . Melee . | . . . . Knockbacks . | . . . . Impact . | . . . . Kinetic . | . . . . Secondary . | . . . . Self-Inflicted Damage . | . . . . Shots . | . . . . Rammed . | . . . . Targets Rammed . | . . . . Kicked . | . . . . Crushed . | . . . . Highest Temperature 7 | . . . 7 Average Temperature 3 | . . . 3 Received Heat Transfer 243 | . . . 243 Siege Activations . | . . . . Martial Activations . | . . . . Shielding Activations . | . . . . Robots Disrupted . | . . . . Combat Hostiles . | . . . . Robots Corrupted . | . . . . Combat Hostiles . | . . . . Parts Fried . | . . . . Impact Corruptions . | . . . . Robots Melted . | . . . . Combat Hostiles . | . . . . Parts Melted . | . . . . Heat Transferred 851 | . . . 851 Parts Sabotaged . | . . . . Parts Stolen . | . . . . Parts Stripped . | . . . . Power Chain Reactions . | . . . . Alert | -11 -10 -10 -10 ------- Run | Yrd Mat Min Sub Maximum Alert Level . | . . . . Low Security (%) 100 | 100 100 100 . Level 1 . | . . . . Level 2 . | . . . . Level 3 . | . . . . Level 4 . | . . . . Level 5 . | . . . . High Security . | . . . . Max Security . | . . . . Peak Influence 5 | 5 . . . Initial . | . . . . Average . | . . . . Influence Increases 30 | 10 . . 20 Destroy 0b10 Robot/C 20 | . . . 20 Destroy 0b10 Robot/NC 10 | 10 . . . Influence Decreases 30 | 10 . . 20 Time Decay 30 | 10 . . 20 Squads Dispatched 1 | . . 1 . Investigation 1 | . . 1 . Extermination . | . . . . Reinforcement . | . . . . Assault . | . . . . Garrison . | . . . . Intercept . | . . . . Searches Triggered . | . . . . Construction Impeded . | . . . . Haulers Reinforced . | . . . . Active Scanning Responses . | . . . . Cargo Convoy Interrupts . | . . . . Stealth | -11 -10 -10 -10 --------- Run | Yrd Mat Min Sub Distress Signals . | . . . . Communications Jammed . | . . . . Distress Signals . | . . . . Times Spotted 14 | . 2 . 12 Peak Tracking Total 3 | . 2 . 3 Tactical Retreats . | . . . . Traps | -11 -10 -10 -10 ------- Run | Yrd Mat Min Sub Traps Triggered . | . . . . Indirectly . | . . . . Trap Hack Attempts . | . . . . Triggered . | . . . . Disarmed . | . . . . Reprogrammed . | . . . . Reused . | . . . . Traps Extracted . | . . . . Installed . | . . . . Triggered . | . . . . Machines | -11 -10 -10 -10 ---------- Run | Yrd Mat Min Sub Machines Disabled 1 | . . . 1 Max in Single Turn 1 | . . . 1 Machines Repaired . | . . . . Machines Dismantled . | . . . . Machines Sabotaged . | . . . . Overloaded Fab Kills . | . . . . Hacking | -11 -10 -10 -10 --------- Run | Yrd Mat Min Sub Machines Accessed 4 | . 2 1 1 Terminals 1 | . 1 . . Fabricators . | . . . . Repair Stations . | . . . . Recycling Units 1 | . 1 . . Scanalyzers . | . . . . Garrison Access . | . . . . Total Hacks 5 | . 3 1 1 Successful 3 | . 1 1 1 Failed 2 | . 2 . . Catastrophic 1 | . 1 . . Database Lockouts . | . . . . Manual 2 | . 2 . . Terminals 2 | . 2 . . Fabricators . | . . . . Repair Stations . | . . . . Recycling Units 1 | . 1 . . Scanalyzers . | . . . . Garrison Access . | . . . . Terminal Hacks 2 | . . 1 1 Open Door 1 | . . 1 . Proto ID Catalog 1 | . . . 1 Fabricator Hacks . | . . . . Repair Station Hacks . | . . . . Recycling Unit Hacks 1 | . 1 . . Retrieve Components 1 | . 1 . . Scanalyzer . | . . . . Garrison Access Hacks . | . . . . Unauthorized Hacks . | . . . . Terminals . | . . . . Fabricators . | . . . . Repair Stations . | . . . . Recycling Units . | . . . . Scanalyzers . | . . . . Garrison Access . | . . . . Data Cores Recovered . | . . . . Used . | . . . . Hacking Detections 2 | . 2 . . Full Trace Events 1 | . 1 . . Feedback Events . | . . . . Feedback Blocked . | . . . . Robot Schematics Acquired . | . . . . Robots Built . | . . . . Authchips . | . . . . Time . | . . . . Total Robot Build Rating . | . . . . Part Schematics Acquired . | . . . . Parts Built . | . . . . Authchips . | . . . . Time . | . . . . Total Part Build Rating . | . . . . Parts Repaired . | . . . . Time . | . . . . Parts Recycled . | . . . . Recycled Matter . | . . . . Retrieved Matter . | . . . . Retrieved Components 3 | . 3 . . Parts Scanalyzed . | . . . . Part Schematics Acquired . | . . . . Parts Damaged . | . . . . Bothacking | -11 -10 -10 -10 ------------ Run | Yrd Mat Min Sub Used RIF Installer . | . . . . Robots Hacked . | . . . . Non-combat . | . . . . Combat . | . . . . Robot Hacks Applied . | . . . . Relay Couplers Released . | . . . . Fabnet Peak Effective % . | . . . . Robots Rewired . | . . . . Allies Hacked . | . . . . Hacks Repelled . | . . . . Allies | -11 -10 -10 -10 -------- Run | Yrd Mat Min Sub Total Allies . | . . . . Largest Group . | . . . . Highest-Rated Group . | . . . . Highest-Rated Ally . | . . . . Total Orders . | . . . . Ally Attacks . | . . . . Total Damage . | . . . . Kills . | . . . . Allies Corrupted . | . . . . Allies Melted . | . . . . Intel | -11 -10 -10 -10 ------- Run | Yrd Mat Min Sub Active Infowar (turns) 429 | 15 297 117 . Seismic 429 | 15 297 117 . Robot Analysis Total . | . . . . Derelict Logs Recovered 1 | . . . 1 Drone Launches . | . . . . Drone Recoveries . | . . . . Exploration | -11 -10 -10 -10 ------------- Run | Yrd Mat Min Sub Turns Passed 2528 | 165 297 118 1948 Spaces Moved 1369 | 88 168 56 1057 Core 23 | 23 . . . Treads 1159 | 65 168 56 870 Legs . | . . . . Wheels 187 | . . . 187 Hover . | . . . . Flight . | . . . . Fastest Speed 50 | 50 160 160 105 Average Speed 156 | 131 160 160 157 Slowest Speed 240 | 160 160 160 240 Overloaded Moves . | . . . . Propulsion Burnouts . | . . . . Robots Hopped . | . . . . Potential Cave-ins . | . . . . Cave-ins Triggered . | . . . . Exploration Rate (%) 29 | 6 33 8 71 Regions Visited 3 Branch Regions 2 Pre-discovered Areas 1 | . . . 1 Known Exits Taken . | . . . . Unknown Exits Taken 3 | 1 1 1 . Scrap Searched 3 | . . . 3 Spaces Dug . | . . . . Terrain Destroyed . | . . . . Melee . | . . . . Projectile . | . . . . AOE . | . . . . Terrain Rammed . | . . . . Walls Destroyed . | . . . . Machines Disabled . | . . . . Actions | -11 -10 -10 -10 --------- Run | Yrd Mat Min Sub Total 1609 | 116 197 85 1211 Wait 62 | . 17 23 22 Move 1366 | 87 167 55 1057 Hop . | . . . . Pick Up 52 | 10 10 5 27 Fast Attach . | . . . . Attach 16 | 7 . . 9 Detach . | . . . . Swap 5 | . 1 1 3 Drop 14 | . 2 1 11 Fire 94 | 12 . . 82 Melee . | . . . . Ram . | . . . . Kick . | . . . . Crush . | . . . . Escape Stasis . | . . . . Rewire . | . . . . Trap . | . . . . Miscellaneous . | . . . . Route ------- -11/Scrapyard -10/Materials (discovered 2 exits: [*Mat] / *Min) -10/Mines -10/Subcaves (discovered 2 exits: [*Mat x2]) History --------- Turn | Location | Event 11 | -11/Scrapyard | Discovered new exit (range 16) 166 | -11/Scrapyard | Entered Materials 312 | -10/Materials | Build established: Mutant 355 | -10/Materials | Discovered new exit (range 5) 441 | -10/Materials | Discovered new exit (range 9) 463 | -10/Materials | Entered Mines 464 | -10/Mines | Met a Derelict bent on vengeance 474 | -10/Mines | Met a Derelict shopkeep closing up shop 563 | -10/Mines | Discovered new exit (range 5) 581 | -10/Mines | Entered Subcaves 626 | -10/Subcaves | Shifting Twisted Machinery released Sub. Machine Gun 832 | -10/Subcaves | A swath of the cavern ceiling suddenly collapsed 929 | -10/Subcaves | Discovered new exit (range 13) 936 | -10/Subcaves | A swath of the cavern ceiling suddenly collapsed 1464 | -10/Subcaves | Shifting Twisted Machinery released Sub. Laser 1546 | -10/Subcaves | Discovered new exit (range 11) 1801 | -10/Subcaves | Visited 4L-MR0's lab 1817 | -10/Subcaves | Found Meta Core 1875 | -10/Subcaves | Shifting Twisted Machinery released Sub. Machine Gun 2022 | -10/Subcaves | Core integrity fell below 50% 2181 | -10/Subcaves | Lost 4 parts (1p2n1w) 2231 | -10/Subcaves | Learned location of Zion (-6) 2506 | -10/Subcaves | Core integrity fell below 20% 2529 | -10/Subcaves | Destroyed by TI-NQC(R) with Subdweller Shrapnel Launcher Last Messages --------------- 02310_ Acquired Humpback. 02313_ Acquired Lgt. Nuclear Core. 02316_ Acquired Sub. Monowheel. 02319_ Acquired Sub. Optics. 02322_ Acquired Shock Bomb Launcher. 02347_ Searching scrap... 02347_ Found Barrage Gun. 02347_ Found 47 Matter. 02348_ Acquired 14 matter. 02348_ Searching scrap... 02348_ Found Flamer. 02348_ Found Sub. Laser. 02348_ Found 34 Matter. 02352_ Acquired Barrage Gun. 02354_ Acquired Sub. Laser. 02488_ TI-NQC(R) emerges from the Twisted Machinery. 02515_ Sub. Machine Gun shoots sparks and powers down. 02520_ US-IW0(R) destroyed. 02524_ Sub. Machine Gun shoots sparks and powers down. 02527_ Sub. Power Source destroyed. Map ----- +----------------------------------------------------+ | ?????????????????????????????????# ########### | | ?????????????????????????????????# ## ##### | | ?????????????????????????????????# # | | ?????????????????????????????????# " | | ??????????????????????????###???## """ | | ?????????????????????????## #### """ | | ?????????????????????????# """ | | ?????????????????????????# #### ####### | | ???????????????????????### #?## ##?????? | | ???????????????????????# ### ######## | | ???????????????????????# ## ## | | ???????????????????????# ### | | ???????????????????????#### ## | | ??????????????????????????# ## ##" | | ??????????????????????????# ####""## | | ??????????????????????????# ##??##"## # | | ??????????????????????????# ######????###" # | | ???????????????????????##?## ##??????????## ## | | ??????????????????????## ??# #?????#???### #? | | ??????????????????????# ?## #??# ##### * ## | | ????????????????????### ## ####??# """% """" | | ????????????????????#; ##???# """"#!#"" | | ????????????????????#; #????? "" ##### | | ????????????????????#; #???? "" ##??# | | ????????????? ## "# ####?# "" ##?## | | ????????????" " @ ## ## "" ##?# ## | | ?????????????"" "" #?#" # | | ???????????? "" R | """??##"## | | ????????????? "" ###"???""""" | | ?????????????? """ " ;;## #??????""""" | | ??????????????# ##"""##### ####" #??????""" | | ??????????????????####?????##??## #?????### | | ????????????????????????????????## ####???????## | | ??????????????????????????????????###???????????## | | ?????????????????????????????????????????????????? | | ?????????????????????????????????????????????????? | | ?????????????????????????????????????????????????? | | ?????????????????????????????????????????????????? | | ?????????????????????????????????????????????????? | | ?????????????????????????????????????????????????? | | ?????????????????????????????????????????????????? | | ?????????????????????????????????????????????????? | | ?????????????????????????????????????????????????? | | ?????????????????????????????????????????????????? | | ?????????????????????????????????????????????????? | | ?????????????????????????????????????????????????? | | ?????????????????????????????????????????????????? | | ?????????????????????????????????????????????????? | | | | | +----------------------------------------------------+ Best States ------------- Heat Dissipation 25 Energy Generation 15 Energy Capacity 250 Matter Stores 300 Matter Capacity 300 Sight Range 16 Terrain Scan Density 10 Armor Coverage 150 Evasion (%) 50 Recoil Reduction 2 Item Schematics ----------------- None Robot Schematics ------------------ None Fabricated ------------ Nothing Repaired ---------- Nothing Alien Tech Used ----------------- None Achievements -------------- None Challenges ------------ None Game ------ Seed ElectronGaussGun Manual? 0 Play Time 00:14:01 Cumulative 278.8 hours Start 2025.09.11 @ 13:46:08 End 2025.09.11 @ 13:54:21 Sessions 1 Manual Loads 0 Difficulty Rogue Special Mode None Game No. 403 Rogue 403 Adventurer 0 Explorer 0 Win Type - Total 7 Types 5/0/1/1/0/0/0/0/0/0 Lore% 83 Gallery% 79 Achievement% 62 Wizard Run 0 Options --------- Layout 0 ASCII 0 Keyboard 0 Movement Mouse Keybinds 0 Fullscreen 1 Font 24/Smallcaps Map View 76x50 Zoom Use 0% Tactical HUD 1 Map Filters NONE Filters NONE Steam 1 RUN: 6525c2c8-b65f-46fe-a0b8-bfc2fbad7ab0